Workbook

Sheet Лист1
B2: [1] | C2: [2] | D2: [3] | E2: [4] | F2: [5] | G2: [6] | H2: [7]
B3: Yt | C3: Yt-1 | D3: Yt - срYt | E3: (Yt-1) - ср(Y-1) | F3: [3] * [4] | G3: [3] ^2 | H3: [4] ^2
B4: 34.4862 | C4: 34.4129 | D4: =B4-$B$270 -> -0.5399068548 | E4: =C4-$C$270 -> -0.6190415323 | F4: =D4*E4 -> 0.3342247667 | G4: =D4^2 -> 0.2914994119 | H4: =E4^2 -> 0.3832124187
B5: 34.4129 | C5: 34.3828 | D5: =B5-$B$270 -> -0.6132068548 | E5: =C5-$C$270 -> -0.6491415323 | F5: =D5*E5 -> 0.3980580373 | G5: =D5^2 -> 0.3760226468 | H5: 0.4213847289
B6: 34.3828 | C6: 34.3136 | D6: -0.6433068548 | E6: -0.7183415323 | F6: 0.4621140318 | G6: 0.4138437095 | H6: 0.516014557
B7: 34.3136 | C7: 34.3771 | D7: -0.7125068548 | E7: -0.6548415323 | F7: 0.4665790806 | G7: 0.5076660182 | H7: 0.4288174324
B8: 34.3771 | C8: 34.4037 | D8: -0.6490068548 | E8: -0.6282415323 | F8: 0.4077330609 | G8: 0.4212098976 | H8: 0.3946874229
B9: 34.4037 | C9: 34.3374 | D9: -0.6224068548 | E9: -0.6945415323 | F9: 0.4322874106 | G9: 0.387390293 | H9: 0.48238794
B10: 34.3374 | C10: 34.3991 | D10: -0.6887068548 | E10: -0.6328415323 | F10: 0.4358423013 | G10: 0.4743171319 | H10: 0.400488405
B11: 34.3991 | C11: 34.4173 | D11: -0.6270068548 | E11: -0.6146415323 | F11: 0.385384454 | G11: 0.393137596 | H11: 0.3777842132
B12: 34.4173 | C12: 34.4009 | D12: -0.6088068548 | E12: -0.6310415323 | F12: 0.3841824105 | G12: 0.3706457865 | H12: 0.3982134154
B13: 34.4009 | C13: 34.4016 | D13: -0.6252068548 | E13: -0.6303415323 | F13: 0.3940938469 | G13: 0.3908836113 | H13: 0.3973304473
B14: 34.4016 | C14: 34.4555 | D14: -0.6245068548 | E14: -0.5764415323 | F14: 0.3599916883 | G14: 0.3900088117 | H14: 0.3322848401
B15: 34.4555 | C15: 34.4099 | D15: -0.5706068548 | E15: -0.6220415323 | F15: 0.3549411623 | G15: 0.3255921828 | H15: 0.3869356679
B16: 34.4099 | C16: 34.3176 | D16: -0.6162068548 | E16: -0.7143415323 | F16: 0.4401821489 | G16: 0.379710888 | H16: 0.5102838247
B17: 34.3176 | C17: 34.3212 | D17: -0.7085068548 | E17: -0.7107415323 | F17: 0.5035652476 | G17: 0.5019819634 | H17: 0.5051535257
B18: 34.3212 | C18: 34.3896 | D18: -0.7049068548 | E18: -0.6423415323 | F18: 0.4527909492 | G18: 0.496893674 | H18: 0.4126026441
B19: 34.3896 | C19: 34.3802 | D19: -0.6365068548 | E19: -0.6517415323 | F19: 0.4148379529 | G19: 0.4051409763 | H19: 0.4247670249
B20: 34.3802 | C20: 34.4929 | D20: -0.6459068548 | E20: -0.5390415323 | F20: 0.3481706207 | G20: 0.4171956651 | H20: 0.2905657735
B21: 34.4929 | C21: 34.469 | D21: -0.5332068548 | E21: -0.5629415323 | F21: 0.3001642839 | G21: 0.28430955 | H21: 0.3169031687
B22: 34.469 | C22: 34.3601 | D22: -0.5571068548 | E22: -0.6718415323 | F22: 0.374287523 | G22: 0.3103680477 | H22: 0.4513710445
B23: 34.3601 | C23: 34.3214 | D23: -0.6660068548 | E23: -0.7105415323 | F23: 0.4732255311 | G23: 0.4435651307 | H23: 0.5048692691
B24: 34.3214 | C24: 34.4128 | D24: -0.7047068548 | E24: -0.6191415323 | F24: 0.4363132819 | G24: 0.4966117513 | H24: 0.383336237
B25: 34.4128 | C25: 34.3419 | D25: -0.6133068548 | E25: -0.6900415323 | F25: 0.4232072019 | G25: 0.3761452982 | H25: 0.4761573162
B26: 34.3419 | C26: 34.3015 | D26: -0.6842068548 | E26: -0.7304415323 | F26: 0.4997731034 | G26: 0.4681390202 | H26: 0.533544832
B27: 34.3015 | C27: 34.3097 | D27: -0.7246068548 | E27: -0.7222415323 | F27: 0.5233411651 | G27: 0.5250550941 | H27: 0.5216328309
B28: 34.3097 | C28: 34.2649 | D28: -0.7164068548 | E28: -0.7670415323 | F28: 0.5495138117 | G28: 0.5132387817 | H28: 0.5883527122
B29: 34.2649 | C29: 34.3688 | D29: -0.7612068548 | E29: -0.6631415323 | F29: 0.5047878801 | G29: 0.5794358759 | H29: 0.4397566918
B30: 34.3688 | C30: 34.4602 | D30: -0.6573068548 | E30: -0.5717415323 | F30: 0.3758096283 | G30: 0.4320523014 | H30: 0.3268883797
B31: 34.4602 | C31: 34.4555 | D31: -0.5659068548 | E31: -0.5764415323 | F31: 0.3262122145 | G31: 0.3202505684 | H31: 0.3322848401
B32: 34.4555 | C32: 34.4676 | D32: -0.5706068548 | E32: -0.5643415323 | F32: 0.3220171468 | G32: 0.3255921828 | H32: 0.318481365
B33: 34.4676 | C33: 34.4823 | D33: -0.5585068548 | E33: -0.5496415323 | F33: 0.3069785635 | G33: 0.3119299069 | H33: 0.302105814
B34: 34.4823 | C34: 34.4591 | D34: -0.5438068548 | E34: -0.5728415323 | F34: 0.311515152 | G34: 0.2957258954 | H34: 0.3281474211
B35: 34.4591 | C35: 34.392 | D35: -0.5670068548 | E35: -0.6399415323 | F35: 0.3628512355 | G35: 0.3214967734 | H35: 0.4095251647
B36: 34.392 | C36: 34.4908 | D36: -0.6341068548 | E36: -0.5411415323 | F36: 0.343141555 | G36: 0.4020915034 | H36: 0.2928341579
B37: 34.4908 | C37: 34.518 | D37: -0.5353068548 | E37: -0.5139415323 | F37: 0.2751164252 | G37: 0.2865534288 | H37: 0.2641358986
B38: 34.518 | C38: 34.539 | D38: -0.5081068548 | E38: -0.4929415323 | F38: 0.2504669716 | G38: 0.2581725759 | H38: 0.2429913542
B39: 34.539 | C39: 34.55 | D39: -0.4871068548 | E39: -0.4819415323 | F39: 0.234757024 | G39: 0.237273088 | H39: 0.2322676405
B40: 34.55 | C40: 34.4816 | D40: -0.4761068548 | E40: -0.5503415323 | F40: 0.262021376 | G40: 0.2266777372 | H40: 0.3028758021
B41: 34.4816 | C41: 34.4618 | D41: -0.5445068548 | E41: -0.5701415323 | F41: 0.3104459725 | G41: 0.296487715 | H41: 0.3250613668
B42: 34.4618 | C42: 34.418 | D42: -0.5643068548 | E42: -0.6139415323 | F42: 0.3464514151 | G42: 0.3184422264 | H42: 0.376924205
B43: 34.418 | C43: 34.4206 | D43: -0.6081068548 | E43: -0.6113415323 | F43: 0.3717609764 | G43: 0.3697939469 | H43: 0.3737384691
B44: 34.4206 | C44: 34.4564 | D44: -0.6055068548 | E44: -0.5755415323 | F44: 0.348494343 | G44: 0.3666385513 | H44: 0.3312480554
B45: 34.4564 | C45: 34.4292 | D45: -0.5697068548 | E45: -0.6027415323 | F45: 0.3433859826 | G45: 0.3245659005 | H45: 0.3632973547
B46: 34.4292 | C46: 34.4808 | D46: -0.5969068548 | E46: -0.5511415323 | F46: 0.3289801586 | G46: 0.3562977934 | H46: 0.3037569886
B47: 34.4808 | C47: 34.509 | D47: -0.5453068548 | E47: -0.5229415323 | F47: 0.2851636022 | G47: 0.2973595659 | H47: 0.2734678462
B48: 34.509 | C48: 34.5308 | D48: -0.5171068548 | E48: -0.5011415323 | F48: 0.2591437216 | G48: 0.2673994993 | H48: 0.2511428354
B49: 34.5308 | C49: 34.6563 | D49: -0.4953068548 | E49: -0.3756415323 | F49: 0.1860578259 | G49: 0.2453288805 | H49: 0.1411065608
B50: 34.6563 | C50: 34.6435 | D50: -0.3698068548 | E50: -0.3884415323 | F50: 0.1436483413 | G50: 0.1367571099 | H50: 0.150886824
B51: 34.6435 | C51: 34.6429 | D51: -0.3826068548 | E51: -0.3890415323 | F51: 0.1488499571 | G51: 0.1463880054 | H51: 0.1513533138
B52: 34.6429 | C52: 34.6558 | D52: -0.3832068548 | E52: -0.3761415323 | F52: 0.1441400136 | G52: 0.1468474936 | H52: 0.1414824523
B53: 34.6558 | C53: 34.7309 | D53: -0.3703068548 | E53: -0.3010415323 | F53: 0.111477743 | G53: 0.1371271667 | H53: 0.09062600414
B54: 34.7309 | C54: 34.6751 | D54: -0.2952068548 | E54: -0.3568415323 | F54: 0.1053420664 | G54: 0.08714708714 | H54: 0.1273358791
B55: 34.6751 | C55: 34.5937 | D55: -0.3510068548 | E55: -0.4382415323 | F55: 0.1538257819 | G55: 0.1232058121 | H55: 0.1920556406
B56: 34.5937 | C56: 34.6768 | D56: -0.4324068548 | E56: -0.3551415323 | F56: 0.153565633 | G56: 0.1869756881 | H56: 0.1261255079
B57: 34.6768 | C57: 34.7015 | D57: -0.3493068548 | E57: -0.3304415323 | F57: 0.1154254923 | G57: 0.1220152788 | H57: 0.1091916062
B58: 34.7015 | C58: 34.6644 | D58: -0.3246068548 | E58: -0.3675415323 | F58: 0.1193065008 | G58: 0.1053696102 | H58: 0.1350867779
B59: 34.6644 | C59: 34.6861 | D59: -0.3617068548 | E59: -0.3458415323 | F59: 0.1250932529 | G59: 0.1308318488 | H59: 0.1196063654
B60: 34.6861 | C60: 34.7107 | D60: -0.3400068548 | E60: -0.3212415323 | F60: 0.109224323 | G60: 0.1156046613 | H60: 0.103196122
B61: 34.7107 | C61: 34.7301 | D61: -0.3154068548 | E61: -0.3018415323 | F61: 0.09520288835 | G61: 0.09948148408 | H61: 0.0911083106
B62: 34.7301 | C62: 34.6887 | D62: -0.2960068548 | E62: -0.3432415323 | F62: 0.1016018464 | G62: 0.08762005811 | H62: 0.1178147495
B63: 34.6887 | C63: 34.7214 | D63: -0.3374068548 | E63: -0.3105415323 | F63: 0.1047788417 | G63: 0.1138433857 | H63: 0.09643604326
B64: 34.7214 | C64: 34.7812 | D64: -0.3047068548 | E64: -0.2507415323 | F64: 0.07640266367 | G64: 0.09284626739 | H64: 0.062871316
B65: 34.7812 | C65: 34.7102 | D65: -0.2449068548 | E65: -0.3217415323 | F65: 0.07879670674 | G65: 0.05997936755 | H65: 0.1035176136
B66: 34.7102 | C66: 34.7886 | D66: -0.3159068548 | E66: -0.2433415323 | F66: 0.07687325811 | G66: 0.09979714093 | H66: 0.05921510132
B67: 34.7886 | C67: 34.8028 | D67: -0.2375068548 | E67: -0.2291415323 | F67: 0.05442268464 | G67: 0.0564095061 | H67: 0.05250584181
B68: 34.8028 | C68: 34.8423 | D68: -0.2233068548 | E68: -0.1896415323 | F68: 0.04234825412 | G68: 0.04986595142 | H68: 0.03596391076
B69: 34.8423 | C69: 34.9177 | D69: =B69-$B$270 -> -0.1838068548 | E69: =C69-$C$270 -> -0.1142415323 | F69: =D69*E69 -> 0.02099837674 | G69: =D69^2 -> 0.03378495989 | H69: 0.01305112769
B70: 34.9177 | C70: 34.9518 | D70: -0.1084068548 | E70: -0.08014153226 | F70: 0.008687891454 | G70: 0.01175204618 | H70: 0.006422665193
B71: 34.9518 | C71: 34.935 | D71: -0.07430685484 | E71: -0.09694153226 | F71: 0.007203420365 | G71: 0.005521508676 | H71: 0.009397660677
B72: 34.935 | C72: 35.0029 | D72: -0.09110685484 | E72: -0.02904153226 | F72: 0.002645882664 | G72: 0.008300458999 | H72: 0.0008434105959
B73: 35.0029 | C73: 34.9795 | D73: -0.02320685484 | E73: -0.05244153226 | F73: 0.001217003027 | G73: 0.0005385581115 | H73: 0.002750114306
B74: 34.9795 | C74: 35.0387 | D74: -0.04660685484 | E74: 0.006758467742 | F74: -0.000314990925 | G74: 0.002172198918 | H74: 4.567688622e-05
B75: 35.0387 | C75: 34.9844 | D75: 0.01259314516 | E75: -0.04754153226 | F75: -0.0005986974169 | G75: 0.0001585873051 | H75: 0.002260197289
B76: 34.9844 | C76: 34.9651 | D76: -0.04170685484 | E76: -0.06684153226 | F76: 0.002787750083 | G76: 0.001739461741 | H76: 0.004467790435
B77: 34.9651 | C77: 35.058 | D77: -0.06100685484 | E77: 0.02605846774 | F77: -0.001589745159 | G77: 0.003721836337 | H77: 0.0006790437411
B78: 35.058 | C78: 35.0586 | D78: 0.03189314516 | E78: 0.02665846774 | F78: 0.0008502223815 | G78: 0.001017172708 | H78: 0.0007106739023
B79: 35.0586 | C79: 34.9972 | D79: 0.03249314516 | E79: -0.03474153226 | F79: -0.001128861651 | G79: 0.001055804482 | H79: 0.001206974064
B80: 34.9972 | C80: 35.0653 | D80: -0.02890685484 | E80: 0.03335846774 | F80: -0.0009642883847 | G80: 0.0008356062567 | H80: 0.00111278737
B81: 35.0653 | C81: 34.9823 | D81: 0.03919314516 | E81: -0.04964153226 | F81: -0.00194560778 | G81: 0.001536102628 | H81: 0.002464281725
B82: 34.9823 | C82: 35.0195 | D82: -0.04380685484 | E82: -0.01244153226 | F82: 0.0005450243976 | G82: 0.001919040531 | H82: 0.0001547917249
B83: 35.0195 | C83: 34.9609 | D83: -0.006606854839 | E83: -0.07104153226 | F83: 0.0004693610911 | G83: 4.365053086e-05 | H83: 0.005046899306
B84: 34.9609 | C84: 35.0178 | D84: -0.06520685484 | E84: -0.01414153226 | F84: 0.0009221248411 | G84: 0.004251933918 | H84: 0.0001999829346
B85: 35.0178 | C85: 35.018 | D85: -0.008306854839 | E85: -0.01394153226 | F85: 0.0001158102847 | G85: 6.900383731e-05 | H85: 0.0001943663217
B86: 35.018 | C86: 34.9486 | D86: -0.008106854839 | E86: -0.08334153226 | F86: 0.0006756377041 | G86: 6.572109538e-05 | H86: 0.006945810999
B87: 34.9486 | C87: 34.8585 | D87: -0.07750685484 | E87: -0.1734415323 | F87: 0.01344290766 | G87: 0.006007312547 | H87: 0.03008196511
B88: 34.8585 | C88: 34.9294 | D88: -0.1676068548 | E88: -0.1025415323 | F88: 0.01718666371 | G88: 0.02809205779 | H88: 0.01051476584
B89: 34.9294 | C89: 34.9439 | D89: -0.09670685484 | E89: -0.08804153226 | F89: 0.00851421968 | G89: 0.009352215773 | H89: 0.007751311402
B90: 34.9439 | C90: 35.0134 | D90: -0.08220685484 | E90: -0.01854153226 | F90: 0.001524241051 | G90: 0.006757966982 | H90: 0.0003437884185
B91: 35.0134 | C91: 34.92 | D91: -0.01270685484 | E91: -0.1119415323 | F91: 0.001422424801 | G91: 0.0001614641599 | H91: 0.01253090664
B92: 34.92 | C92: 34.8706 | D92: -0.1061068548 | E92: -0.1613415323 | F92: 0.01711944254 | G92: 0.01125866464 | H92: 0.02603109003
B93: 34.8706 | C93: 34.9082 | D93: -0.1555068548 | E93: -0.1237415323 | F93: 0.01924265649 | G93: 0.0241823819 | H93: 0.01531196681
B94: 34.9082 | C94: 34.8619 | D94: -0.1179068548 | E94: -0.1700415323 | F94: 0.02004906226 | G94: 0.01390202642 | H94: 0.02891412269
B95: 34.8619 | C95: 34.8358 | D95: -0.1642068548 | E95: -0.1961415323 | F95: 0.03220778412 | G95: 0.02696389118 | H95: 0.03847150068
B96: 34.8358 | C96: 34.8358 | D96: -0.1903068548 | E96: -0.1961415323 | F96: 0.03732707811 | G96: 0.036216699 | H96: 0.03847150068
B97: 34.8358 | C97: 34.8041 | D97: -0.1903068548 | E97: -0.2278415323 | F97: 0.04335980541 | G97: 0.036216699 | H97: 0.05191176382
B98: 34.8041 | C98: 34.8354 | D98: -0.2220068548 | E98: -0.1965415323 | F98: 0.04363356742 | G98: 0.0492870436 | H98: 0.0386285739
B99: 34.8354 | C99: 34.8187 | D99: -0.1907068548 | E99: -0.2132415323 | F99: 0.04066662194 | G99: 0.03636910448 | H99: 0.04547195108
B100: 34.8187 | C100: 34.8164 | D100: -0.2074068548 | E100: -0.2155415323 | F100: 0.04470479129 | G100: 0.04301760343 | H100: 0.04645815213
B101: 34.8164 | C101: 34.8128 | D101: -0.2097068548 | E101: -0.2191415323 | F101: 0.04595548149 | G101: 0.04397696497 | H101: 0.04802301116
B102: 34.8128 | C102: 34.8177 | D102: -0.2133068548 | E102: -0.2142415323 | F102: 0.04569918742 | G102: 0.04549981432 | H102: 0.04589943414
B103: 34.8177 | C103: 34.818 | D103: -0.2084068548 | E103: -0.2139415323 | F103: 0.04458688186 | G103: 0.04343341714 | H103: 0.04577097922
B104: 34.818 | C104: 34.894 | D104: -0.2081068548 | E104: -0.1379415323 | F104: 0.02870657843 | G104: 0.04330846303 | H104: 0.01902786632
B105: 34.894 | C105: 34.9369 | D105: -0.1321068548 | E105: -0.09504153226 | F105: 0.01255563791 | G105: 0.0174522211 | H105: 0.009032892854
B106: 34.9369 | C106: 34.8929 | D106: -0.08920685484 | E106: -0.1390415323 | F106: 0.01240345778 | G106: 0.00795786295 | H106: 0.01933254769
B107: 34.8929 | C107: 34.778 | D107: -0.1332068548 | E107: -0.2539415323 | F107: 0.03382675283 | G107: 0.01774406618 | H107: 0.06448630181
B108: 34.778 | C108: 34.7471 | D108: -0.2481068548 | E108: -0.2848415323 | F108: 0.0706711367 | G108: 0.06155701142 | H108: 0.0811346985
B109: 34.7471 | C109: 34.6333 | D109: -0.2790068548 | E109: -0.3986415323 | F109: 0.1112237201 | G109: 0.07784482505 | H109: 0.1589150712
B110: 34.6333 | C110: 34.6471 | D110: -0.3928068548 | E110: -0.3848415323 | F110: 0.1511683919 | G110: 0.1542972252 | H110: 0.148103005
B111: 34.6471 | C111: 34.6698 | D111: -0.3790068548 | E111: -0.3621415323 | F111: 0.1372541231 | G111: 0.143646196 | H111: 0.1311464894
B112: 34.6698 | C112: 34.7756 | D112: -0.3563068548 | E112: -0.2563415323 | F112: 0.09133624512 | G112: 0.1269545748 | H112: 0.06571098116
B113: 34.7756 | C113: 34.8093 | D113: -0.2505068548 | E113: -0.2226415323 | F113: 0.05577323 | G113: 0.06275368432 | H113: 0.04956925189
B114: 34.8093 | C114: 34.8155 | D114: -0.2168068548 | E114: -0.2164415323 | F114: 0.04692600787 | G114: 0.04700521231 | H114: 0.04684693689
B115: 34.8155 | C115: 34.7676 | D115: -0.2106068548 | E115: -0.2643415323 | F115: 0.05567213871 | G115: 0.04435524731 | H115: 0.06987644568
B116: 34.7676 | C116: 34.79 | D116: -0.2585068548 | E116: -0.2419415323 | F116: 0.06254354456 | G116: 0.066825794 | H116: 0.05853570503
B117: 34.79 | C117: 34.8472 | D117: -0.2361068548 | E117: -0.1847415323 | F117: 0.04361874214 | G117: 0.0557464469 | H117: 0.03412943374
B118: 34.8472 | C118: 34.6819 | D118: -0.1789068548 | E118: -0.3500415323 | F118: 0.0626248296 | G118: 0.03200766271 | H118: 0.1225290743
B119: 34.6819 | C119: 34.6993 | D119: -0.3442068548 | E119: -0.3326415323 | F119: 0.1144974956 | G119: 0.1184783589 | H119: 0.110650389
B120: 34.6993 | C120: 34.7324 | D120: -0.3268068548 | E120: -0.2995415323 | F120: 0.09789222605 | G120: 0.1068027204 | H120: 0.08972512955
B121: 34.7324 | C121: 34.715 | D121: -0.2937068548 | E121: -0.3169415323 | F121: 0.09308790061 | G121: 0.08626371658 | H121: 0.1004519349
B122: 34.715 | C122: 34.8368 | D122: -0.3111068548 | E122: -0.1951415323 | F122: 0.06070986835 | G122: 0.09678747513 | H122: 0.03808021761
B123: 34.8368 | C123: 34.9454 | D123: -0.1893068548 | E123: -0.08654153226 | F123: 0.01638290528 | G123: 0.03583708529 | H123: 0.007489436806
B124: 34.9454 | C124: 34.9657 | D124: -0.08070685484 | E124: -0.06624153226 | F124: 0.005346145728 | G124: 0.006513596418 | H124: 0.004387940596
B125: 34.9657 | C125: 34.958 | D125: -0.06040685484 | E125: -0.07394153226 | F125: 0.004466575406 | G125: 0.003648988112 | H125: 0.005467350193
B126: 34.958 | C126: 34.9575 | D126: -0.06810685484 | E126: -0.07444153226 | F126: 0.005069978631 | G126: 0.004638543676 | H126: 0.005541541725
B127: 34.9575 | C127: 35.0081 | D127: -0.06860685484 | E127: -0.02384153226 | F127: 0.001635692543 | G127: 0.004706900531 | H127: 0.0005684186604
B128: 35.0081 | C128: 34.9342 | D128: -0.01800685484 | E128: -0.09774153226 | F128: 0.001760017583 | G128: 0.0003242468212 | H128: 0.009553407128
B129: 34.9342 | C129: 35.1099 | D129: -0.09190685484 | E129: 0.07795846774 | F129: -0.007164917578 | G129: 0.008446869966 | H129: 0.006077522693
B130: 35.1099 | C130: 35.1263 | D130: 0.08379314516 | E130: 0.09435846774 | F130: 0.007906592785 | G130: 0.007021291176 | H130: 0.008903520435
B131: 35.1263 | C131: 35.1072 | D131: 0.1001931452 | E131: 0.07525846774 | F131: 0.007540382583 | G131: 0.01003866634 | H131: 0.005663836967
B132: 35.1072 | C132: 35.1066 | D132: 0.08109314516 | E132: 0.07465846774 | F132: 0.006054289962 | G132: 0.006576098192 | H132: 0.005573886806
B133: 35.1066 | C133: 35.1068 | D133: =B133-$B$270 -> 0.08049314516 | E133: =C133-$C$270 -> 0.07485846774 | F133: =D133*E133 -> 0.006025593511 | G133: =D133^2 -> 0.006479146418 | H133: 0.005603790193
B134: 35.1068 | C134: 35.1379 | D134: 0.08069314516 | E134: 0.1059584677 | F134: 0.008550122019 | G134: 0.006511383676 | H134: 0.01122719689
B135: 35.1379 | C135: 35.0869 | D135: 0.1117931452 | E135: 0.05495846774 | F135: 0.006143979962 | G135: 0.01249770731 | H135: 0.003020433177
B136: 35.0869 | C136: 35.077 | D136: 0.06079314516 | E136: 0.04505846774 | F136: 0.00273924597 | G136: 0.003695806499 | H136: 0.002030265515
B137: 35.077 | C137: 35.1079 | D137: 0.05089314516 | E137: 0.07595846774 | F137: 0.003865765325 | G137: 0.002590112224 | H137: 0.005769688822
B138: 35.1079 | C138: 35.0902 | D138: 0.08179314516 | E138: 0.05825846774 | F138: 0.004765143309 | G138: 0.006690118595 | H138: 0.003394049064
B139: 35.0902 | C139: 35.0728 | D139: 0.06409314516 | E139: 0.04085846774 | F139: 0.002618747704 | G139: 0.004107931257 | H139: 0.001669414386
B140: 35.0728 | C140: 34.9666 | D140: 0.04669314516 | E140: -0.06534153226 | F140: -0.003051001651 | G140: 0.002180249805 | H140: 0.004269515838
B141: 34.9666 | C141: 34.9911 | D141: -0.05950685484 | E141: -0.04084153226 | F141: 0.002430351131 | G141: 0.003541065773 | H141: 0.001668030757
B142: 34.9911 | C142: 34.9336 | D142: -0.03500685484 | E142: -0.09834153226 | F142: 0.003442627744 | G142: 0.001225479886 | H142: 0.009671056967
B143: 34.9336 | C143: 35.0015 | D143: -0.09250685484 | E143: -0.03044153226 | F143: 0.002816050406 | G143: 0.008557518192 | H143: 0.0009266868862
B144: 35.0015 | C144: 34.9528 | D144: -0.02460685484 | E144: -0.07914153226 | F144: 0.001947424196 | G144: 0.0006054973051 | H144: 0.006263382128
B145: 34.9528 | C145: 34.9774 | D145: -0.07330685484 | E145: -0.05454153226 | F145: 0.003998268188 | G145: 0.005373894966 | H145: 0.002974778741
B146: 34.9774 | C146: 35.0262 | D146: -0.04870685484 | E146: -0.005741532258 | F146: 0.0002796519782 | G146: 0.002372357708 | H146: 3.296519267e-05
B147: 35.0262 | C147: 35.195 | D147: 9.314516131e-05 | E147: 0.1630584677 | F147: 1.518810728e-05 | G147: 8.676021075e-09 | H147: 0.0265880639
B148: 35.195 | C148: 35.1489 | D148: 0.1688931452 | E148: 0.1169584677 | F148: 0.01975348347 | G148: 0.02852489448 | H148: 0.01367928318
B149: 35.1489 | C149: 34.9968 | D149: 0.1227931452 | E149: -0.03514153226 | F149: -0.004315139272 | G149: 0.0150781565 | H149: 0.001234927289
B150: 34.9968 | C150: 34.9499 | D150: -0.02930685484 | E150: -0.08204153226 | F150: 0.002404379277 | G150: 0.0008588917405 | H150: 0.006730813015
B151: 34.9499 | C151: 34.8808 | D151: -0.07620685484 | E151: -0.1511415323 | F151: 0.01151802081 | G151: 0.005807484724 | H151: 0.02284376277
B152: 34.8808 | C152: 34.8325 | D152: -0.1453068548 | E152: -0.1994415323 | F152: 0.02898022178 | G152: 0.02111408206 | H152: 0.03977692479
B153: 34.8325 | C153: 34.7413 | D153: -0.1936068548 | E153: -0.2906415323 | F153: 0.05627019295 | G153: 0.03748361424 | H153: 0.08447250027
B154: 34.7413 | C154: 34.5813 | D154: -0.2848068548 | E154: -0.4506415323 | F154: 0.1283457975 | G154: 0.08111494456 | H154: 0.2030777906
B155: 34.5813 | C155: 34.548 | D155: -0.4448068548 | E155: -0.4839415323 | F155: 0.2152605109 | G155: 0.1978531381 | H155: 0.2341994066
B156: 34.548 | C156: 34.5502 | D156: -0.4781068548 | E156: -0.4817415323 | F156: 0.2303239288 | G156: 0.2285861646 | H156: 0.2320749039
B157: 34.5502 | C157: 34.7372 | D157: -0.4759068548 | E157: -0.2947415323 | F157: 0.1402695156 | G157: 0.2264873345 | H157: 0.08687257084
B158: 34.7372 | C158: 34.8259 | D158: -0.2889068548 | E158: -0.2060415323 | F158: 0.05952681105 | G158: 0.08346717077 | H158: 0.04245311302
B159: 34.8259 | C159: 34.8511 | D159: -0.2002068548 | E159: -0.1808415323 | F159: 0.0362057144 | G159: 0.04008278472 | H159: 0.03270365979
B160: 34.8511 | C160: 34.8377 | D160: -0.1750068548 | E160: -0.1942415323 | F160: 0.03399359964 | G160: 0.03062739924 | H160: 0.03772977285
B161: 34.8377 | C161: 34.9344 | D161: -0.1884068548 | E161: -0.09754153226 | F161: 0.01837749331 | G161: 0.03549714295 | H161: 0.009514350515
B162: 34.9344 | C162: 35.0773 | D162: -0.09170685484 | E162: 0.04535846774 | F162: -0.004159682417 | G162: 0.008410147224 | H162: 0.002057390596
B163: 35.0773 | C163: 35.0006 | D163: 0.05119314516 | E163: -0.03134153226 | F163: -0.00160447161 | G163: 0.002620738112 | H163: 0.0009822916443
B164: 35.0006 | C164: 35.0042 | D164: -0.02550685484 | E164: -0.02774153226 | F164: 0.0007075992363 | G164: 0.0006505996438 | H164: 0.000769592612
B165: 35.0042 | C165: 35.0114 | D165: -0.02190685484 | E165: -0.02054153226 | F165: 0.0004500003653 | G165: 0.0004799102889 | H165: 0.0004219545475
B166: 35.0114 | C166: 35.0233 | D166: -0.01470685484 | E166: -0.008641532258 | F166: 0.0001270897605 | G166: 0.0002162915792 | H166: 7.467607977e-05
B167: 35.0233 | C167: 34.9221 | D167: -0.002806854839 | E167: -0.1098415323 | F167: 0.0003083092363 | G167: 7.878434086e-06 | H167: 0.01206516221
B168: 34.9221 | C168: 34.8571 | D168: -0.1040068548 | E168: -0.1748415323 | F168: 0.01818471787 | G168: 0.01081742585 | H168: 0.0305695614
B169: 34.8571 | C169: 34.8951 | D169: -0.1690068548 | E169: -0.1368415323 | F169: 0.02312715698 | G169: 0.02856331698 | H169: 0.01872560495
B170: 34.8951 | C170: 35.021 | D170: -0.1310068548 | E170: -0.01094153226 | F170: 0.001433415728 | G170: 0.01716279601 | H170: 0.0001197171282
B171: 35.021 | C171: 35.0848 | D171: -0.005106854839 | E171: 0.05285846774 | F171: -0.0002699405218 | G171: 2.607996634e-05 | H171: 0.002794017612
B172: 35.0848 | C172: 35.2366 | D172: 0.05869314516 | E172: 0.2046584677 | F172: 0.01201204916 | G172: 0.003444885289 | H172: 0.04188508842
B173: 35.2366 | C173: 35.1857 | D173: 0.2104931452 | E173: 0.1537584677 | F173: 0.03236510347 | G173: 0.04430736416 | H173: 0.0236416664
B174: 35.1857 | C174: 35.2223 | D174: 0.1595931452 | E174: 0.1903584677 | F174: 0.03037990658 | G174: 0.02546997198 | H174: 0.03623634624
B175: 35.2223 | C175: 35.2309 | D175: 0.1961931452 | E175: 0.1989584677 | F175: 0.03903428754 | G175: 0.03849175021 | H175: 0.03958447189
B176: 35.2309 | C176: 35.1674 | D176: 0.2047931452 | E176: 0.1354584677 | F176: 0.02774096565 | G176: 0.04194023231 | H176: 0.01834899648
B177: 35.1674 | C177: 35.1358 | D177: 0.1412931452 | E177: 0.1038584677 | F177: 0.01467448956 | G177: 0.01996375287 | H177: 0.01078658132
B178: 35.1358 | C178: 35.101 | D178: 0.1096931452 | E178: 0.06905846774 | F178: 0.007575240527 | G178: 0.0120325861 | H178: 0.004769071967
B179: 35.101 | C179: 35.2135 | D179: 0.07489314516 | E179: 0.1815584677 | F179: 0.01359748468 | G179: 0.005608983192 | H179: 0.03296347721
B180: 35.2135 | C180: 35.2188 | D180: 0.1873931452 | E180: 0.1868584677 | F180: 0.03501599597 | G180: 0.03511619085 | H180: 0.03491608697
B181: 35.2188 | C181: 35.3186 | D181: 0.1926931452 | E181: 0.2866584677 | F181: 0.05523712174 | G181: 0.03713064819 | H181: 0.08217307713
B182: 35.3186 | C182: 35.3088 | D182: 0.2924931452 | E182: 0.2768584677 | F182: 0.08097920399 | G182: 0.08555223997 | H182: 0.07665061116
B183: 35.3088 | C183: 35.2193 | D183: 0.2826931452 | E183: 0.1873584677 | F183: 0.05296495452 | G183: 0.07991541432 | H183: 0.03510319543
B184: 35.2193 | C184: 35.2954 | D184: 0.1931931452 | E184: 0.2634584677 | F184: 0.05089837 | G184: 0.03732359134 | H184: 0.06941036422
B185: 35.2954 | C185: 35.3261 | D185: 0.2692931452 | E185: 0.2941584677 | F185: 0.07921485895 | G185: 0.07251879803 | H185: 0.08652920414
B186: 35.3261 | C186: 35.3457 | D186: 0.2999931452 | E186: 0.3137584677 | F186: 0.09412538956 | G186: 0.08999588714 | H186: 0.09844437608
B187: 35.3457 | C187: 35.4443 | D187: 0.3195931452 | E187: 0.4123584677 | F187: 0.1317869396 | G187: 0.1021397784 | H187: 0.1700395059
B188: 35.4443 | C188: 35.3712 | D188: 0.4181931452 | E188: 0.3392584677 | F188: 0.1418755656 | G188: 0.1748855067 | H188: 0.1150963079
B189: 35.3712 | C189: 35.3428 | D189: 0.3450931452 | E189: 0.3108584677 | F189: 0.1072751263 | G189: 0.1190892788 | H189: 0.09663298697
B190: 35.3428 | C190: 35.2531 | D190: 0.3166931452 | E190: 0.2211584677 | F190: 0.07003937073 | G190: 0.1002945482 | H190: 0.04891106785
B191: 35.2531 | C191: 35.2837 | D191: 0.2269931452 | E191: 0.2517584677 | F191: 0.05714744641 | G191: 0.05152588795 | H191: 0.06338232608
B192: 35.2837 | C192: 35.2693 | D192: 0.2575931452 | E192: 0.2373584677 | F192: 0.06114191424 | G192: 0.06635422843 | H192: 0.05633904221
B193: 35.2693 | C193: 35.1788 | D193: 0.2431931452 | E193: 0.1468584677 | F193: 0.03571497266 | G193: 0.05914290585 | H193: 0.02156740955
B194: 35.1788 | C194: 35.2652 | D194: 0.1526931452 | E194: 0.2332584677 | F194: 0.03561696908 | G194: 0.02331519658 | H194: 0.05440951277
B195: 35.2652 | C195: 35.3414 | D195: 0.2390931452 | E195: 0.3094584677 | F195: 0.07398939835 | G195: 0.05716553206 | H195: 0.09576454326
B196: 35.3414 | C196: 35.3363 | D196: 0.3152931452 | E196: 0.3043584677 | F196: 0.09596213855 | G196: 0.09940976739 | H196: 0.09263407689
B197: 35.3363 | C197: 35.3383 | D197: =B197-$B$270 -> 0.3101931452 | E197: =C197-$C$270 -> 0.3063584677 | F197: =D197*E197 -> 0.09503029666 | G197: =D197^2 -> 0.09621978731 | H197: 0.09385551076
B198: 35.3383 | C198: 35.3746 | D198: 0.3121931452 | E198: 0.3426584677 | F198: 0.1069756248 | G198: 0.09746455989 | H198: 0.1174148255
B199: 35.3746 | C199: 35.3372 | D199: 0.3484931452 | E199: 0.3052584677 | F199: 0.1063804835 | G199: 0.1214474722 | H199: 0.09318273213
B200: 35.3372 | C200: 35.4194 | D200: 0.3110931452 | E200: 0.3874584677 | F200: 0.1205356733 | G200: 0.09677894497 | H200: 0.1501240642
B201: 35.4194 | C201: 35.5346 | D201: 0.3932931452 | E201: 0.5026584677 | F201: 0.1976921297 | G201: 0.154679498 | H201: 0.2526655352
... 157 more rows
